bitfinex-derivatives/quotes_ETHF0:USTF0_20260118
["timestamp","ask_amount","ask_price","bid_price","bid_amount"]
[1768741953339,1.04817355,3321.4,3320.0,0.436344]
[1768741953538,1.04817355,3321.3,3320.0,0.436344]
[1768741953748,1.04817355,3321.2,3320.0,0.436344]
[1768741953936,1.04817355,3321.1,3320.0,0.436344]
[1768741954132,0.26704214,3321.5,3320.0,0.436344]
[1768741954343,1.04817392,3321.4,3320.0,0.436344]
[1768741954541,1.04817392,3321.3,3320.0,0.436344]
[1768741954742,1.04817392,3321.2,3320.0,0.436344]
[1768741954943,1.04817392,3321.1,3320.0,0.436344]
[1768741955145,0.26704214,3321.5,3320.0,0.436344]
[1768741955344,1.04817508,3321.4,3320.0,3.449344]
[1768741955537,1.04817508,3321.3,3320.0,3.449344]
[1768741955835,1.04817508,3321.2,3320.0,3.449344]
[1768741956038,1.04817508,3321.1,3320.0,3.449344]
[1768741956236,0.26704214,3321.5,3320.0,3.449344]
[1768741956440,1.04817511,3321.4,3320.0,3.449344]
[1768741956634,1.04817511,3321.3,3320.0,3.449344]
[1768741956835,1.04817511,3321.2,3320.0,3.449344]
[1768741957045,1.04817511,3321.1,3320.0,3.449344]
[1768741957244,0.26704214,3321.5,3320.0,3.449344]
[1768741957440,1.04817654,3321.4,3320.0,3.449344]
[1768741957747,1.04817654,3321.3,3320.0,3.449344]
[1768741958045,1.04817654,3321.2,3320.0,3.449344]
[1768741958347,1.04817654,3321.1,3320.0,3.449344]
[1768741958548,0.26704214,3321.5,3320.0,3.449344]
[1768741958746,1.04817628,3321.4,3320.0,3.449344]
[1768741958950,1.04817628,3321.3,3320.0,3.449344]
[1768741959148,1.04817628,3321.2,3320.0,3.449344]
[1768741959348,1.04817628,3321.1,3320.0,3.449344]
[1768741959549,0.26704214,3321.5,3320.0,3.449344]
[1768741959755,1.04817549,3321.4,3320.0,3.449344]
[1768741960045,1.04817549,3321.3,3320.0,3.449344]
[1768741960247,1.04817549,3321.2,3320.0,3.449344]
[1768741960446,1.04817549,3321.1,3320.0,3.449344]
[1768741960647,0.26704214,3321.5,3320.0,3.449344]
[1768741960841,1.04817647,3321.4,3320.0,3.449344]
[1768741961042,1.04817647,3321.3,3320.0,3.449344]
[1768741961337,1.04817647,3321.2,3320.0,3.449344]
[1768741961540,1.04817647,3321.1,3320.0,3.449344]
[1768741961840,0.26704214,3321.5,3320.0,3.449344]
[1768741962037,1.04817665,3321.4,3320.0,3.449344]
[1768741962250,1.04817665,3321.3,3320.0,3.449344]
[1768741962450,1.04817665,3321.2,3320.0,3.449344]
[1768741962753,1.04817665,3321.1,3320.0,3.449344]
[1768741962948,0.26704214,3321.5,3320.0,3.449344]
[1768741963249,1.0481771,3321.4,3320.0,3.449344]
[1768741963448,1.0481771,3321.3,3320.0,3.449344]
[1768741963648,1.0481771,3321.2,3320.0,3.449344]
[1768741963852,1.0481771,3321.1,3320.0,3.449344]
[1768741964049,0.26704214,3321.5,3320.0,3.449344]
[1768741964250,1.04817692,3321.4,3320.0,3.449344]
[1768741964552,1.04817692,3321.3,3320.0,3.449344]
[1768741964847,1.04817692,3321.2,3320.0,3.449344]
[1768741965049,1.04817692,3321.1,3320.0,3.449344]
[1768741965247,0.26704214,3321.5,3320.0,3.449344]
[1768741965450,1.04817846,3321.4,3320.0,3.449344]
[1768741965653,1.04817846,3321.3,3320.0,3.449344]
[1768741965854,1.04817846,3321.2,3320.0,3.449344]
[1768741966054,1.04817846,3321.1,3320.0,3.449344]
[1768741966255,0.26704214,3321.5,3320.0,3.449344]
[1768741966449,1.04817898,3321.4,3320.0,3.449344]
[1768741966649,1.04817898,3321.3,3320.0,3.449344]
[1768741966856,1.04817898,3321.2,3320.0,3.449344]
[1768741967054,1.04817898,3321.1,3320.0,3.449344]
[1768741967355,0.26704214,3321.5,3320.0,3.449344]
[1768741967557,1.04818063,3321.4,3320.0,3.449344]
[1768741967855,1.04818063,3321.3,3320.0,3.449344]
[1768741968156,1.04818063,3321.2,3320.0,3.449344]
[1768741968355,1.04818063,3321.1,3320.0,3.449344]
[1768741968655,0.26704214,3321.5,3320.0,3.449344]
[1768741968850,1.04818169,3321.4,3320.0,3.449344]
[1768741969048,0.26704214,3321.5,3320.0,3.449344]
[1768741969049,1.04818169,3321.3,3320.0,3.449344]
[1768741969253,1.04818169,3321.2,3320.0,3.449344]
[1768741969453,1.04818169,3321.1,3320.0,3.449344]
[1768741969654,0.26704214,3321.5,3320.0,3.449344]
[1768741969854,1.04818088,3321.4,3320.0,3.449344]
[1768741970053,1.04818088,3321.3,3320.0,3.449344]
[1768741970254,1.04818088,3321.2,3320.0,3.449344]
[1768741970456,1.04818088,3321.1,3320.0,3.449344]
[1768741970657,0.26704214,3321.5,3320.0,3.449344]
[1768741970855,1.04818214,3321.4,3320.0,3.449344]
[1768741971051,1.04818214,3321.3,3320.0,3.449344]
[1768741971244,1.04818214,3321.2,3320.0,3.449344]
[1768741971445,0.26704214,3321.5,3320.0,3.449344]
[1768741971649,1.04818353,3321.4,3320.0,3.449344]
[1768741971857,1.04818353,3321.3,3320.0,3.449344]
[1768741972157,1.04818353,3321.2,3320.0,3.449344]
[1768741972457,1.04818353,3321.1,3320.0,3.449344]
[1768741972659,0.26704214,3321.5,3320.0,3.449344]
[1768741972956,1.04818361,3321.4,3320.0,3.449344]
[1768741973155,1.04818361,3321.3,3320.0,3.449344]
[1768741973360,1.04818361,3321.2,3320.0,3.449344]
[1768741973557,1.04818361,3321.1,3320.0,3.449344]
[1768741973759,0.26704214,3321.5,3320.0,3.449344]
[1768741973956,1.04818523,3321.4,3320.0,3.449344]
[1768741974157,1.04818523,3321.3,3320.0,3.449344]
[1768741974346,1.04818523,3321.2,3320.0,3.449344]
[1768741974550,1.04818523,3321.1,3320.0,3.449344]
[1768741974756,0.26704214,3321.5,3320.0,3.449344]
[1768741974956,1.0481881,3321.4,3320.0,3.449344]
[1768741975160,1.0481881,3321.3,3320.0,3.449344]
[1768741975361,1.0481881,3321.2,3320.0,3.449344]
[1768741975553,1.0481881,3321.1,3320.0,3.449344]
[1768741975754,0.26704214,3321.5,3320.0,3.449344]
[1768741976054,1.04819098,3321.4,3320.0,3.449344]
[1768741976353,1.04819098,3321.3,3320.0,3.449344]
[1768741976553,1.04819098,3321.2,3320.0,3.449344]
[1768741976754,1.04819098,3321.1,3320.0,3.449344]
[1768741976954,0.26704214,3321.5,3320.0,3.449344]
[1768741977154,1.04819089,3321.4,3320.0,3.449344]
[1768741977354,1.04819089,3321.3,3320.0,3.449344]
[1768741977557,1.04819089,3321.2,3320.2,0.27533706]
[1768741977855,1.04819089,3321.1,3320.2,0.27533706]
[1768741978051,0.28173107,3321.9,3320.2,0.27533706]
[1768741978350,1.04818912,3321.8,3320.2,0.27533706]
[1768741978551,1.04818912,3321.7,3320.2,0.27533706]
[1768741978848,1.04818912,3321.6,3320.2,0.27533706]
[1768741979045,1.04818912,3321.5,3320.2,0.27533706]
[1768741979260,1.04818912,3321.4,3320.2,0.27533706]
[1768741979452,1.04818912,3321.3,3320.2,0.27533706]
[1768741979655,1.04818912,3321.2,3320.2,0.27533706]
[1768741979852,1.04818912,3321.1,3320.2,0.27533706]
[1768741980053,0.28173107,3321.9,3320.2,0.27533706]
[1768741980253,1.04815793,3321.8,3320.2,0.27533706]
[1768741980460,1.04815793,3321.7,3320.2,0.27533706]
[1768741980652,1.04815793,3321.6,3320.2,0.27533706]
[1768741980852,1.04815793,3321.5,3320.2,0.27533706]
[1768741981060,1.04815793,3321.4,3320.2,0.27533706]
[1768741981261,1.04815793,3321.3,3320.2,0.27533706]
[1768741981459,1.04815793,3321.2,3320.2,0.27533706]
[1768741981660,1.04815793,3321.1,3320.2,0.27533706]
[1768741981857,0.28173107,3321.9,3320.2,0.27533706]
[1768741982058,1.04814746,3321.8,3320.2,0.27533706]
[1768741982358,1.04814746,3321.7,3320.2,0.27533706]
[1768741982557,1.04814746,3321.6,3320.2,0.27533706]
[1768741982857,1.04814746,3321.5,3320.2,0.27533706]
[1768741983059,1.04814746,3321.4,3320.2,0.27533706]
[1768741983260,1.04814746,3321.3,3320.2,0.27533706]
[1768741983455,1.04814746,3321.2,3320.2,0.27533706]
[1768741983655,1.04814746,3321.1,3320.2,0.27533706]
[1768741983957,0.28173107,3321.9,3320.2,0.27533706]
[1768741984155,1.0481335,3321.8,3320.2,0.27533706]
[1768741984354,1.0481335,3321.7,3320.2,0.27533706]
[1768741984556,1.0481335,3321.6,3320.2,0.27533706]
[1768741984756,1.0481335,3321.5,3320.2,0.27533706]
[1768741985059,1.0481335,3321.4,3320.2,0.27533706]
[1768741985366,1.0481335,3321.3,3320.2,0.27533706]
[1768741985563,1.0481335,3321.2,3320.2,0.27533706]
[1768741985868,1.0481335,3321.1,3320.2,0.27533706]
[1768741986162,0.28173107,3321.9,3320.2,0.27533706]
[1768741986363,1.04801229,3321.8,3320.2,0.27533706]
[1768741986564,1.04801229,3321.7,3320.2,0.27533706]
[1768741986763,1.04801229,3321.6,3320.2,0.27533706]
[1768741987064,1.04801229,3321.5,3320.2,0.27533706]
[1768741987265,1.04801229,3321.4,3320.2,0.27533706]
[1768741987465,1.04801229,3321.3,3320.2,0.27533706]
[1768741987666,1.04801229,3321.2,3320.2,0.27533706]
[1768741987866,0.28173107,3321.9,3320.2,0.27533706]
[1768741988066,1.04669562,3321.8,3320.2,0.27533706]
[1768741988265,1.04669562,3321.7,3320.2,0.27533706]
[1768741988569,1.04669562,3321.6,3320.2,0.27533706]
[1768741988771,1.04669562,3321.5,3320.2,0.27533706]
[1768741989066,1.04669562,3321.4,3320.2,0.27533706]
[1768741989371,1.04669562,3321.3,3320.2,0.27533706]
[1768741989559,0.28173107,3321.9,3320.2,0.27533706]
[1768741989759,1.32822599,3321.8,3320.2,0.27533706]
[1768741989962,1.04649492,3321.7,3320.2,0.27533706]
[1768741994767,1.04649492,3321.7,3320.3,3.013]
[1768742012697,1.04649492,3321.7,3320.3,3.28265659]
[1768742046228,1.04649492,3321.7,3320.3,0.26965659]
[1768742046430,1.04649492,3321.7,3320.4,1.83]
[1768742057144,1.04261978,3321.6,3320.4,1.83]
[1768742057342,1.04261978,3321.5,3320.4,1.83]
[1768742057543,1.04261978,3321.4,3320.4,1.83]
[1768742057746,1.04261978,3321.3,3320.4,1.83]
[1768742058042,0.28173107,3321.8,3320.4,1.83]
[1768742058247,1.04261772,3321.7,3320.4,1.83]
[1768742058546,1.04261772,3321.6,3320.4,1.83]
[1768742058743,1.04261772,3321.5,3320.4,1.83]
[1768742058941,1.04261772,3321.4,3320.4,1.83]
[1768742059146,1.04261772,3321.3,3320.4,1.83]
[1768742059445,0.28173107,3321.8,3320.4,1.83]
[1768742059647,1.0426185,3321.7,3320.4,1.83]
[1768742059946,1.0426185,3321.6,3320.4,1.83]
[1768742060147,1.0426185,3321.5,3320.4,1.83]
[1768742060345,1.0426185,3321.4,3320.4,1.83]
[1768742060544,1.0426185,3321.3,3320.4,1.83]
[1768742060744,0.28173107,3321.8,3320.4,1.83]
[1768742060945,1.04261731,3321.7,3320.4,1.83]
[1768742061242,1.04261731,3321.6,3320.4,1.83]
[1768742061445,1.04261731,3321.5,3320.4,1.83]
[1768742061645,1.04261731,3321.4,3320.4,1.83]
[1768742061845,1.04261731,3321.3,3320.4,1.83]
[1768742062147,0.28173107,3321.8,3320.4,1.83]
[1768742062342,1.04263686,3321.7,3320.4,1.83]
[1768742062542,1.04263686,3321.6,3320.4,1.83]
[1768742062742,1.04263686,3321.5,3320.4,1.83]
[1768742063042,1.04263686,3321.4,3320.4,1.83]
[1768742063242,1.04263686,3321.3,3320.4,1.83]
[1768742063448,0.28173107,3321.8,3320.4,1.83]
[1768742063648,1.04263739,3321.7,3320.4,1.83]
[1768742063840,1.04263739,3321.6,3320.4,1.83]
[1768742064038,1.04263739,3321.5,3320.4,1.83]
[1768742064241,1.04263739,3321.4,3320.4,1.83]
[1768742064437,1.04263739,3321.3,3320.4,1.83]
[1768742064738,0.28173107,3321.8,3320.4,1.83]
[1768742064941,1.04263686,3321.7,3320.4,1.83]
[1768742065141,1.04263686,3321.6,3320.4,1.83]
[1768742065351,1.04263686,3321.5,3320.4,1.83]
[1768742065649,1.04263686,3321.4,3320.4,1.83]
[1768742065849,1.04263686,3321.3,3320.4,1.83]
[1768742066149,0.28173107,3321.8,3320.4,1.83]
[1768742066351,1.0428008,3321.7,3320.4,1.83]
[1768742066550,1.0428008,3321.6,3320.4,1.83]
[1768742066847,1.0428008,3321.5,3320.4,1.83]
[1768742067045,1.0428008,3321.4,3320.4,1.83]
[1768742067243,1.0428008,3321.3,3320.4,1.83]
[1768742067443,0.28173107,3321.8,3320.4,1.83]
[1768742067645,1.04280113,3321.7,3320.4,1.83]
[1768742067841,1.04280113,3321.6,3320.4,2.10492875]
[1768742068041,1.04280113,3321.5,3320.4,2.10492875]
[1768742068244,1.04280113,3321.4,3320.4,2.10492875]
[1768742068545,1.04280113,3321.3,3320.4,2.10492875]
[1768742068743,0.27818478,3322.1,3320.4,2.10492875]
[1768742068944,1.04280566,3322.0,3320.4,2.10492875]
[1768742069145,1.04280566,3321.9,3320.4,2.10492875]
[1768742069444,1.04280566,3321.8,3320.4,2.10492875]
[1768742069644,1.04280566,3321.7,3320.4,2.10492875]
[1768742069852,1.04280566,3321.6,3320.4,2.10492875]
[1768742070055,1.04280566,3321.5,3320.4,2.10492875]
[1768742070254,1.04280566,3321.4,3320.4,2.10492875]
[1768742070558,1.04280566,3321.3,3320.4,2.10492875]
[1768742070745,0.27818478,3322.1,3320.4,2.10492875]
[1768742070947,1.04313399,3322.0,3320.4,2.10492875]
[1768742071141,1.04313399,3321.9,3320.4,2.10492875]
[1768742071442,1.04313399,3321.8,3320.4,2.10492875]
[1768742071642,1.04313399,3321.7,3320.4,2.10492875]
[1768742071845,1.04313399,3321.6,3320.4,2.10492875]
[1768742072040,1.04313399,3321.5,3320.4,2.10492875]
[1768742072244,1.04313399,3321.4,3320.4,2.10492875]
[1768742072455,1.04313399,3321.3,3320.4,2.10492875]
[1768742072655,0.27818478,3322.1,3320.4,2.10492875]
[1768742072956,1.04314059,3322.0,3320.4,2.10492875]
[1768742073154,1.04314059,3321.9,3320.4,2.10492875]
[1768742073454,1.04314059,3321.8,3320.4,2.10492875]
[1768742073644,1.04314059,3321.7,3320.4,2.10492875]
[1768742073844,1.04314059,3321.6,3320.4,2.10492875]
[1768742074058,1.04314059,3321.5,3320.4,2.10492875]
[1768742074256,1.04314059,3321.4,3320.4,2.10492875]
[1768742074453,1.04314059,3321.3,3320.4,2.10492875]
[1768742074654,0.27818478,3322.1,3320.4,2.10492875]
[1768742074950,1.04326534,3322.0,3320.4,2.10492875]
[1768742075249,1.04326534,3321.9,3320.4,2.10492875]
[1768742075550,1.04326534,3321.8,3320.4,2.10492875]
[1768742075741,1.04326534,3321.7,3320.4,2.10492875]
[1768742075943,1.04326534,3321.6,3320.4,2.10492875]
[1768742076157,1.04326534,3321.5,3320.4,2.10492875]
[1768742076455,1.04326534,3321.4,3320.4,2.10492875]
[1768742076654,1.04326534,3321.3,3320.4,2.10492875]
[1768742076851,0.27818478,3322.1,3320.4,2.10492875]
[1768742077051,1.04277464,3322.0,3320.4,2.10492875]
[1768742077252,1.04277464,3321.9,3320.4,2.10492875]
[1768742077458,1.04277464,3321.8,3320.4,2.10492875]
[1768742077659,1.04277464,3321.7,3320.4,2.10492875]
[1768742077854,1.04277464,3321.6,3320.4,2.10492875]
[1768742078055,1.04277464,3321.5,3320.4,2.10492875]
[1768742078255,1.04277464,3321.4,3320.4,2.10492875]
[1768742078455,1.04277464,3321.3,3320.4,2.10492875]
[1768742078657,0.27818478,3322.1,3320.4,2.10492875]
[1768742078858,1.04277416,3322.0,3320.4,2.10492875]
[1768742079060,1.04277416,3321.9,3320.4,2.10492875]
[1768742079260,1.04277416,3321.8,3320.4,2.10492875]
[1768742079559,1.04277416,3321.7,3320.4,2.10492875]
[1768742079754,1.04277416,3321.6,3320.4,2.10492875]
[1768742080062,1.04277416,3321.5,3320.4,2.10492875]
[1768742080255,1.04277416,3321.4,3320.4,2.10492875]
[1768742080456,1.04277416,3321.3,3320.4,2.10492875]
[1768742080756,0.27818478,3322.1,3320.4,2.10492875]
[1768742080956,1.0427746,3322.0,3320.4,2.10492875]
[1768742081157,1.0427746,3321.9,3320.4,2.10492875]
[1768742081358,1.0427746,3321.8,3320.4,2.10492875]
[1768742081559,1.0427746,3321.7,3320.4,0.27492875]
[1768742081765,1.0427746,3321.6,3320.4,0.27492875]
[1768742081951,1.0427746,3321.5,3320.4,0.27492875]
[1768742082157,1.0427746,3321.4,3320.4,0.27492875]
[1768742082355,1.0427746,3321.3,3320.4,0.27492875]
[1768742082553,0.27818478,3322.1,3320.4,0.27492875]
[1768742082758,1.04276906,3322.0,3320.4,0.27492875]
[1768742082960,1.04276906,3321.9,3320.4,0.27492875]
[1768742083258,1.04276906,3321.8,3320.4,0.27492875]
[1768742083460,1.04276906,3321.7,3320.4,0.27492875]
[1768742083668,1.04276906,3321.6,3320.4,0.27492875]
[1768742083869,1.04276906,3321.5,3320.4,0.27492875]
[1768742084070,1.04276906,3321.4,3320.4,0.27492875]
[1768742084284,1.04276906,3321.3,3320.4,0.27492875]
[1768742084461,0.27818478,3322.1,3320.4,0.27492875]
[1768742084763,1.04276221,3322.0,3320.4,0.27492875]
[1768742084960,1.04276221,3321.9,3320.4,0.27492875]
[1768742085168,1.04276221,3321.8,3320.4,0.27492875]
[1768742085367,0.27818478,3322.1,3320.4,0.27492875]
[1768742085368,1.04276221,3321.7,3320.4,0.27492875]
[1768742085567,1.04276221,3321.6,3320.4,0.27492875]
[1768742085769,1.04276221,3321.5,3320.4,0.27492875]
[1768742085970,1.04276221,3321.4,3320.4,0.27492875]
[1768742086170,1.04276221,3321.3,3320.4,0.27492875]
[1768742086364,0.27818478,3322.1,3320.4,0.27492875]
[1768742086565,1.04276325,3322.0,3320.4,0.27492875]
[1768742086765,1.04276325,3321.9,3320.4,0.27492875]
[1768742086964,1.04276325,3321.8,3320.4,0.27492875]
[1768742087165,1.04276325,3321.7,3320.4,0.27492875]
[1768742087370,1.04276325,3321.6,3320.4,0.27492875]
[1768742087664,1.04276325,3321.5,3320.4,0.27492875]
[1768742087864,1.04276325,3321.4,3320.4,0.27492875]
[1768742088077,1.04276325,3321.3,3320.4,0.27492875]
[1768742088274,0.27818478,3322.1,3320.4,0.27492875]
[1768742088478,1.04283484,3322.0,3320.4,0.27492875]
[1768742088668,1.04283484,3321.9,3320.4,0.27492875]
[1768742088869,1.04283484,3321.8,3320.4,0.27492875]
[1768742089166,1.04283484,3321.7,3320.4,0.27492875]
[1768742089468,0.27818478,3322.1,3320.4,0.27492875]
[1768742089469,1.04283484,3321.6,3320.4,0.27492875]
[1768742089667,1.04283484,3321.5,3320.4,0.27492875]
[1768742089869,1.04283484,3321.4,3320.4,0.27492875]
[1768742090077,1.04283484,3321.3,3320.4,0.27492875]
[1768742090276,0.27818478,3322.1,3320.4,0.27492875]
[1768742090479,1.04283303,3322.0,3320.4,0.27492875]
[1768742090774,1.04283303,3321.9,3320.4,0.27492875]
[1768742090978,1.04283303,3321.8,3320.4,0.27492875]
[1768742091173,1.04283303,3321.7,3320.4,0.27492875]
[1768742091377,1.04283303,3321.6,3320.4,0.27492875]
[1768742091573,1.04283303,3321.5,3320.4,0.27492875]
[1768742091781,1.04283303,3321.4,3320.4,0.27492875]
[1768742091975,1.04283303,3321.3,3320.4,0.27492875]
[1768742092273,0.27818478,3322.1,3320.4,0.27492875]
[1768742092474,1.04283331,3322.0,3320.4,0.27492875]
[1768742092679,0.27818478,3322.1,3320.4,0.27492875]
[1768742092680,1.04283331,3321.9,3320.4,0.27492875]
[1768742092878,1.04283331,3321.8,3320.4,0.27492875]
[1768742093080,1.04283331,3321.7,3320.4,0.27492875]
[1768742093282,1.04283331,3321.6,3320.4,0.27492875]
[1768742093485,1.04283331,3321.5,3320.4,0.27492875]
[1768742093781,1.04283331,3321.4,3320.4,0.27492875]
[1768742093983,1.04283331,3321.3,3320.4,0.27492875]
[1768742094185,0.27818478,3322.1,3320.4,0.27492875]
[1768742094379,1.04283273,3322.0,3320.4,0.27492875]
[1768742094676,1.04283273,3321.9,3320.4,0.27492875]
[1768742094878,1.04283273,3321.8,3320.4,0.27492875]
[1768742095078,1.04283273,3321.7,3320.4,0.27492875]
[1768742095279,0.27818478,3322.1,3320.4,0.27492875]
[1768742095280,1.04283273,3321.6,3320.4,0.27492875]
[1768742095478,1.04283273,3321.5,3320.4,0.27492875]
[1768742095677,1.04283273,3321.4,3320.4,0.27492875]
[1768742095879,1.04283273,3321.3,3320.4,0.27492875]
[1768742096077,0.27818478,3322.1,3320.4,0.27492875]
[1768742096376,1.04283313,3322.0,3320.4,0.27492875]
[1768742096577,1.04283313,3321.9,3320.4,0.27492875]
[1768742096883,1.04283313,3321.8,3320.4,0.27492875]
[1768742097077,1.04283313,3321.7,3320.4,0.27492875]
[1768742097277,1.04283313,3321.6,3320.4,0.27492875]
[1768742097478,1.04283313,3321.5,3320.4,0.27492875]
[1768742097678,1.04283313,3321.4,3320.4,0.27492875]
[1768742097882,1.04283313,3321.3,3320.4,0.27492875]
[1768742098083,0.27818478,3322.1,3320.4,0.27492875]
[1768742098389,1.04279969,3322.0,3320.4,0.27492875]
[1768742098590,1.04279969,3321.9,3320.4,0.27492875]
[1768742098788,1.04279969,3321.8,3320.4,0.27492875]
[1768742098989,1.04279969,3321.7,3320.4,0.27492875]
[1768742099192,1.04279969,3321.6,3320.4,0.27492875]
[1768742099386,1.04279969,3321.5,3320.4,0.27492875]
[1768742099582,1.04279969,3321.4,3320.4,0.27492875]
[1768742099782,0.27818478,3322.1,3320.4,0.27492875]
[1768742099986,1.04272098,3322.0,3320.4,0.27492875]
[1768742100186,1.04272098,3321.9,3320.4,0.27492875]
[1768742100389,1.04272098,3321.8,3320.4,0.27492875]
[1768742100682,1.04272098,3321.7,3320.4,0.27492875]
[1768742100993,1.04272098,3321.6,3320.4,0.27492875]
[1768742101193,1.04272098,3321.5,3320.4,0.27492875]
[1768742101390,1.04272098,3321.4,3320.4,0.27492875]
[1768742101691,0.27818478,3322.1,3320.4,0.27492875]
[1768742101890,1.04272317,3322.0,3320.4,0.27492875]
[1768742102092,1.04272317,3321.9,3320.4,0.27492875]
[1768742102389,1.04272317,3321.8,3320.4,0.27492875]
[1768742102591,1.04272317,3321.7,3320.4,0.27492875]
[1768742102792,1.04272317,3321.6,3320.4,0.27492875]
[1768742103090,1.04272317,3321.5,3320.4,0.27492875]
[1768742103280,1.04272317,3321.4,3320.4,0.27492875]
[1768742103484,0.28728798,3322.2,3320.4,0.27492875]
[1768742103680,1.32996424,3322.1,3320.4,0.27492875]
[1768742103979,1.04267626,3322.0,3320.4,0.27492875]
[1768742104182,1.04267626,3321.9,3320.4,0.27492875]
[1768742104382,1.04267626,3321.8,3320.4,0.27492875]
[1768742104580,1.04267626,3321.7,3320.4,0.27492875]
[1768742104792,1.04267626,3321.6,3320.4,0.27492875]
[1768742104992,1.04267626,3321.5,3320.4,0.27492875]
[1768742105194,1.04267626,3321.4,3320.4,0.27492875]
[1768742105380,0.28728798,3322.1,3320.4,0.27492875]
[1768742105587,1.04264222,3322.0,3320.4,0.27492875]
[1768742105791,1.04264222,3321.9,3320.4,0.27492875]
[1768742105987,1.04264222,3321.8,3320.4,0.27492875]
[1768742106191,1.04264222,3321.7,3320.4,0.27492875]
[1768742106391,1.04264222,3321.6,3320.4,0.27492875]
[1768742106689,1.04264222,3321.5,3320.4,0.27492875]
[1768742106898,1.04264222,3321.4,3320.4,0.27492875]
[1768742107099,0.28728798,3322.1,3320.4,0.27492875]
[1768742107303,1.0421938,3322.0,3320.4,0.27492875]
[1768742107500,1.0421938,3321.9,3320.4,0.27492875]
[1768742107700,1.0421938,3321.8,3320.4,0.27492875]
[1768742107902,1.0421938,3321.7,3320.4,0.27492875]
[1768742108095,1.0421938,3321.6,3320.4,0.27492875]
[1768742108294,1.0421938,3321.5,3320.4,0.27492875]
[1768742108504,1.0421938,3321.4,3320.4,0.27492875]
[1768742108700,0.28728798,3322.1,3320.4,0.27492875]
[1768742108904,1.32957317,3322.0,3320.4,0.27492875]
[1768742109105,1.04228519,3321.9,3320.4,0.27492875]
[1768742126015,1.04228519,3321.9,3320.5,0.29683004]
[1768742154842,0.29207887,3321.8,3320.6,1.821]
[1768742155042,1.33436406,3321.7,3320.6,1.821]
[1768742155343,1.04228519,3321.6,3320.6,1.821]
[1768742155549,1.04228519,3321.5,3320.6,1.821]
[1768742155744,1.04228519,3321.4,3320.6,1.821]
[1768742156041,0.29207887,3321.7,3320.6,1.821]
[1768742156241,1.03923796,3321.6,3320.6,1.821]
[1768742156442,1.03923796,3321.5,3320.6,1.821]
[1768742156640,1.03923796,3321.4,3320.6,1.821]
[1768742156835,0.29207887,3321.7,3320.6,1.821]
[1768742157036,1.03921542,3321.6,3320.6,1.821]
[1768742157236,1.03921542,3321.5,3320.6,1.821]
[1768742157536,1.03921542,3321.4,3320.6,1.821]
[1768742157735,0.29207887,3321.7,3320.6,1.821]
[1768742157937,1.03919728,3321.6,3320.6,1.821]
[1768742158144,1.03919728,3321.5,3320.6,1.821]
[1768742158445,1.03919728,3321.4,3320.6,1.821]
[1768742158636,0.29207887,3321.7,3320.6,1.821]
[1768742158837,1.03918077,3321.6,3320.6,1.821]
[1768742159134,1.03918077,3321.5,3320.6,1.821]
[1768742159333,1.03918077,3321.4,3320.6,1.821]
[1768742159545,0.29207887,3321.7,3320.6,1.821]
[1768742159742,1.0391658,3321.6,3320.6,1.821]
[1768742159940,1.0391658,3321.5,3320.6,1.821]
[1768742160141,1.0391658,3321.4,3320.6,1.821]
[1768742160340,0.29207887,3321.7,3320.6,1.821]
[1768742160641,1.03916153,3321.6,3320.6,1.821]
[1768742160940,1.03916153,3321.5,3320.6,1.821]
[1768742161141,1.03916153,3321.4,3320.6,1.821]
[1768742161343,0.29207887,3321.7,3320.6,1.821]
[1768742161539,1.03914563,3321.6,3320.6,1.821]
[1768742161740,1.03914563,3321.5,3320.6,1.821]
[1768742161940,1.03914563,3321.4,3320.6,1.821]
[1768742162138,0.29207887,3321.7,3320.6,1.821]
[1768742162339,1.03914607,3321.6,3320.6,1.821]
[1768742162540,1.03914607,3321.5,3320.6,1.821]
[1768742162839,1.03914607,3321.4,3320.6,1.821]
[1768742163046,0.29207887,3321.7,3320.6,1.821]
[1768742163236,1.03913253,3321.6,3320.5,1.82]
[1768742163442,1.03913253,3321.5,3320.5,1.82]
[1768742163642,1.03913253,3321.4,3320.0,3.012]
[1768742163844,1.03913253,3321.3,3320.1,1.82]
[1768742164042,1.03913253,3321.2,3320.1,1.82]
[1768742164242,0.29207887,3321.7,3320.1,1.82]
[1768742164440,1.33076414,3321.6,3320.1,1.82]
[1768742164640,1.03868527,3321.5,3320.1,1.82]
[1768742164840,1.03868527,3321.4,3320.1,1.82]
[1768742165040,1.03868527,3321.3,3320.1,1.82]
[1768742165246,1.03868527,3321.2,3320.1,1.82]
[1768742165448,0.29207887,3321.6,3320.1,1.82]
[1768742165650,1.03850624,3321.5,3320.1,1.82]
[1768742165948,1.03850624,3321.4,3320.1,1.82]
[1768742166140,1.03850624,3321.3,3320.1,1.82]
[1768742166341,1.03850624,3321.2,3320.1,1.82]
[1768742166540,0.29207887,3321.6,3320.1,1.82]
[1768742166741,1.03750643,3321.5,3320.1,1.82]
[1768742166936,1.03750643,3321.4,3320.1,1.82]
[1768742167139,1.03750643,3321.3,3320.1,1.82]
[1768742167342,0.29207887,3321.6,3320.1,1.82]
[1768742167543,1.03739929,3321.5,3320.1,1.82]
[1768742167744,1.03739929,3321.4,3320.1,1.82]
[1768742167943,1.03739929,3321.3,3320.1,1.82]
[1768742168152,0.29207887,3321.6,3320.1,1.82]
[1768742168449,1.03738603,3321.5,3320.1,1.82]
[1768742168748,1.03738603,3321.4,3320.1,1.82]
[1768742168951,1.03738603,3321.3,3320.1,1.82]
[1768742169250,0.29207887,3321.6,3320.1,1.82]
[1768742169551,1.03723633,3321.5,3320.1,1.82]
[1768742169744,1.03723633,3321.4,3320.1,1.82]
[1768742169945,1.03723633,3321.3,3320.1,1.82]
[1768742170144,0.29207887,3321.6,3320.1,1.82]
[1768742170347,1.0372268,3321.5,3320.1,1.82]
[1768742170561,1.0372268,3321.4,3320.1,1.82]
[1768742170742,1.0372268,3321.3,3320.1,1.82]
[1768742170946,0.29207887,3321.6,3320.1,1.82]
[1768742171246,1.03717814,3321.5,3320.1,1.82]
[1768742171447,1.03717814,3321.4,3320.1,1.82]
[1768742171643,0.29207887,3321.6,3320.1,1.82]
[1768742171644,1.03717814,3321.3,3320.1,1.82]
[1768742171843,0.29207887,3321.6,3320.1,1.82]
[1768742172046,1.03712941,3321.5,3320.1,1.82]
[1768742172246,1.03712941,3321.4,3320.1,1.82]
[1768742172452,1.03712941,3321.3,3320.1,1.82]
[1768742172653,0.29207887,3321.6,3320.1,1.82]